fUSD/lending_fUSD_20251214
["ID","MTS","AMOUNT","RATE_DAILY","PERIOD"]
[398481752,1765723420511,-500.0,0.00015409,2]
[398481753,1765723423881,-198.47487941,0.00015409,2]
[398481754,1765723461661,-124.80404086,0.00015409,2]
[398481755,1765723461684,-125.19595914,0.00015417,2]
[398481758,1765723475342,2128.08,7.686e-05,2]
[398481759,1765723475742,2128.08,8.091e-05,2]
[398481760,1765723475949,2128.08,8.495e-05,2]
[398481761,1765723476147,2128.08,8.9e-05,2]
[398481762,1765723476348,2128.08,9.304e-05,2]
[398481763,1765723476540,2128.08,9.709e-05,2]
[398481764,1765723476655,200.0,0.00015379,2]
[398481765,1765723476739,2128.08,0.00010113,2]
[398481766,1765723476963,2128.08,0.00010518,2]
[398481767,1765723477168,2128.08,0.00010922,2]
[398481768,1765723477625,2128.08,0.00011327,2]
[398481769,1765723477813,2128.08,0.00011731,2]
[398481770,1765723478013,2128.08,0.00012136,2]
[398481771,1765723478210,2128.08,0.0001254,2]
[398481772,1765723478431,2128.08,0.00012945,2]
[398481773,1765723478646,2128.08,0.00013349,2]
[398481774,1765723478844,2128.08,0.00013754,2]
[398481775,1765723479043,2128.08,0.00014158,2]
[398481776,1765723479248,2128.08,0.00014563,2]
[398481777,1765723479457,2128.08,0.00014967,2]
[398481778,1765723479647,2128.08,0.00015372,2]
[398481779,1765723522788,150.0,0.00015288,2]
[398481780,1765723522851,150.0,0.00015288,2]
[398481781,1765723522924,150.0,0.00015288,2]
[398481782,1765723523496,-69.80404086,0.00015417,2]
[398481783,1765723523520,-91.12758144,0.00015425,2]
[398481784,1765723525349,150.0,0.00015288,2]
[398481785,1765723531490,150.0,0.00015288,2]
[398481796,1765723547827,150.0,0.00015288,2]
[398481801,1765723564626,10335.53477985,0.00022,30]
[398481803,1765723575511,587.72,0.00015268,2]
[398481832,1765723686618,253.62,0.00015202,2]
[398481880,1765723800663,500.0,0.000152,3]
[398481889,1765723828576,999.0,0.00015194,3]
[398481895,1765723832151,-3156.41,0.00015452,2]
[398481896,1765723832162,-279.0,0.00015452,2]
[398481897,1765723832173,-1200.0,0.00015472,2]
[398481898,1765723832183,-300.0,0.00015473,2]
[398481899,1765723832192,-300.0,0.00015473,2]
[398481900,1765723832204,-1200.0,0.00015473,2]
[398481901,1765723832218,-434.79759753,0.00015474,2]
[398481902,1765723832228,-500.0,0.00015474,2]
[398481903,1765723832238,-565.51210135,0.00015474,2]
[398481904,1765723832248,-500.0,0.00015474,2]
[398481905,1765723832259,-500.0,0.00015474,2]
[398481906,1765723832270,-500.0,0.00015474,2]
[398481907,1765723832279,-150.0,0.00015571,2]
[398481908,1765723832290,-150.0,0.00015627,2]
[398481909,1765723832300,-153.33,0.00015633,2]
[398481910,1765723832310,-150.0,0.00015712,2]
[398481911,1765723832321,-300.0,0.00015796,2]
[398481912,1765723832332,-819.83,0.00015797,2]
[398481913,1765723832342,-3547.65899839,0.00015797,2]
[398481914,1765723832353,-200.0,0.00015797,2]
[398481915,1765723832363,-207.4,0.00015797,2]
[398481916,1765723832373,-215.0738,0.00015797,2]
[398481917,1765723832383,-308.80660451,0.00015797,2]
[398481918,1765723832393,-578.20924308,0.00015797,2]
[398481919,1765723832404,-151.0,0.00015797,2]
[398481920,1765723832414,-156.587,0.00015797,2]
[398481922,1765723832424,-162.380719,0.00015797,2]
[398481923,1765723832434,-1111.0,0.00015797,2]
[398481925,1765723832444,-152.76382875,0.00015797,2]
[398481927,1765723832454,-571.83085212,0.00015797,2]
[398481929,1765723832463,-300.0,0.00015797,2]
[398481930,1765723832473,-1111.0,0.00015852,2]
[398481931,1765723832482,-150.0,0.00015854,2]
[398481932,1765723832492,-150.0,0.00015854,2]
[398481933,1765723832502,-1111.0,0.00015907,2]
[398481934,1765723832511,-1111.0,0.00015962,2]
[398481935,1765723832521,-150.0,0.00015967,2]
[398481936,1765723832531,-511.46971854,0.00016,2]
[398481937,1765723832540,-926.57,0.00016,2]
[398481938,1765723832549,-1111.0,0.00016017,2]
[398481939,1765723832559,-572.0,0.00016027,2]
[398481940,1765723832568,-819.83,0.00016071,2]
[398481941,1765723832578,-1111.0,0.00016072,2]
[398481942,1765723832587,-1111.0,0.00016127,2]
[398481943,1765723832597,-150.0,0.00016137,2]
[398481944,1765723832607,-150.0,0.00016137,2]
[398481945,1765723832622,-150.0,0.00016137,2]
[398481946,1765723832632,-150.0,0.00016156,2]
[398481947,1765723832641,-703.99,0.00016164,2]
[398481948,1765723832651,-703.99,0.00016164,2]
[398481949,1765723832660,-167.97886791,0.000162,2]
[398481950,1765723832670,-167.24,0.00016219,2]
[398481951,1765723832679,-211.2160685,0.00016232,2]
[398481952,1765723832688,-1000.0,0.00016234,2]
[398481953,1765723832698,-1000.0,0.00016234,2]
[398481954,1765723832707,-1000.0,0.00016234,2]
[398481955,1765723832717,-764.866,0.00016234,2]
[398481956,1765723832726,-500.0,0.0001625,2]
[398481957,1765723832736,-150.0,0.00016307,2]
[398481958,1765723832746,-2500.0,0.00016324,2]
[398481959,1765723832756,-1711.998,0.00016336,2]
[398481960,1765723832766,-1668.9733167,0.00016338,2]
[398481961,1765723832775,-3661.1511042,0.00016338,2]
[398481962,1765723832785,-819.83,0.00016345,2]
[398481963,1765723832794,-500.0,0.00016387,2]
[398481964,1765723832803,-197.83,0.00016393,2]
[398481965,1765723832812,-179.35656801,0.00016413,2]
[398481966,1765723832822,-414.26779557,0.00016413,2]
[398481967,1765723832831,-198.47487941,0.00016413,2]
[398481968,1765723832840,-500.0,0.00016413,2]
[398481969,1765723832850,-500.0,0.00016413,2]
[398481970,1765723832859,-500.0,0.00016413,2]
[398481971,1765723832869,-500.0,0.00016413,2]
[398481972,1765723832878,-500.0,0.00016413,2]
[398481973,1765723832887,-500.0,0.00016413,2]
[398481974,1765723832897,-468.11958823,0.00016413,2]
[398481975,1765723832906,-661.06,0.00016414,3]
[398481976,1765723832916,-500.0,0.00016414,2]
[398481977,1765723832925,-209.40437684,0.00016414,2]
[398481978,1765723832935,-500.0,0.00016414,2]
[398481979,1765723832945,-200.0,0.00016414,2]
[398481980,1765723832955,-500.0,0.00016414,2]
[398481981,1765723832964,-500.0,0.00016414,2]
[398481982,1765723832974,-1000.0,0.00016414,2]
[398481983,1765723832983,-1093.04860208,0.00016414,2]
[398481984,1765723832994,-220.0,0.00016414,2]
[398481985,1765723833004,-220.0,0.00016414,2]
[398481986,1765723833014,-240.72552052,0.00016414,2]
[398481987,1765723833023,-160.0,0.00016414,2]
[398481988,1765723833032,-500.0,0.00016414,2]
[398481989,1765723833042,-1000.0,0.00016414,2]
[398481990,1765723833051,-500.0,0.00016414,2]
[398481991,1765723833060,-1000.0,0.00016414,2]
[398481992,1765723833069,-242.25792744,0.00016414,2]
[398481993,1765723833078,-1000.0,0.00016414,2]
[398481994,1765723833087,-1000.0,0.00016414,2]
[398481995,1765723833096,-1000.0,0.00016414,2]
[398481996,1765723833105,-1000.0,0.00016414,2]
[398481997,1765723833114,-1000.0,0.00016414,2]
[398481998,1765723833125,-1000.0,0.00016414,2]
[398481999,1765723833137,-250.0,0.00016414,2]
[398482000,1765723833147,-1000.0,0.00016414,2]
[398482001,1765723833156,-574.12855637,0.00016414,2]
[398482002,1765723833167,-1000.0,0.00016414,2]
[398482003,1765723833176,-250.0,0.00016414,2]
[398482004,1765723833186,-250.0,0.00016414,2]
[398482005,1765723833196,-1000.0,0.00016414,2]
[398482006,1765723833207,-1000.0,0.00016414,2]
[398482007,1765723833218,-250.0,0.00016414,2]
[398482008,1765723833227,-250.0,0.00016414,2]
[398482009,1765723833237,-1000.0,0.00016414,2]
[398482010,1765723833246,-500.0,0.00016414,2]
[398482011,1765723833257,-1000.0,0.00016414,2]
[398482012,1765723833266,-250.0,0.00016414,2]
[398482013,1765723833276,-250.0,0.00016414,2]
[398482014,1765723833285,-1000.0,0.00016414,2]
[398482015,1765723833294,-500.0,0.00016414,2]
[398482016,1765723833303,-1000.0,0.00016414,2]
[398482017,1765723833314,-250.0,0.00016414,2]
[398482018,1765723833324,-250.0,0.00016414,2]
[398482019,1765723833334,-1000.0,0.00016414,2]
[398482020,1765723833343,-500.0,0.00016414,2]
[398482021,1765723833353,-250.0,0.00016414,2]
[398482022,1765723833362,-1000.0,0.00016414,2]
[398482023,1765723833372,-500.0,0.00016414,2]
[398482024,1765723833383,-261.15071773,0.00016414,2]
[398482025,1765723833395,-250.0,0.00016414,2]
[398482026,1765723833405,-1000.0,0.00016414,2]
[398482027,1765723833416,-500.0,0.00016414,2]
[398482028,1765723833426,-1000.0,0.00016414,2]
[398482029,1765723833438,-500.0,0.00016414,2]
[398482030,1765723833448,-250.0,0.00016414,2]
[398482031,1765723833458,-1000.0,0.00016414,2]
[398482032,1765723833469,-500.0,0.00016414,2]
[398482033,1765723833480,-252.63118366,0.00016414,2]
[398482034,1765723833490,-1000.0,0.00016414,2]
[398482035,1765723833504,-222.09202813,0.00016414,2]
[398482036,1765723833515,-500.0,0.00016414,2]
[398482037,1765723833526,-513.71195864,0.00016414,2]
[398482038,1765723833537,-683.70666909,0.00016414,2]
[398482039,1765723833547,-151.0,0.00016414,2]
[398482040,1765723833557,-500.0,0.00016414,2]
[398482041,1765723833567,-500.0,0.00016414,2]
[398482042,1765723833578,-500.0,0.00016414,2]
[398482043,1765723833590,-519.01709768,0.00016414,2]
[398482044,1765723833601,-500.0,0.00016414,2]
[398482045,1765723833611,-500.0,0.00016414,2]
[398482046,1765723833620,-500.0,0.00016414,2]
[398482047,1765723833630,-200.0,0.00016414,2]
[398482048,1765723833640,-151.0,0.00016414,2]
[398482049,1765723833650,-151.0,0.00016414,2]
[398482050,1765723833661,-151.0,0.00016414,2]
[398482051,1765723833670,-151.0,0.00016414,2]
[398482052,1765723833680,-151.0,0.00016414,2]
[398482053,1765723833689,-151.0,0.00016414,2]
[398482054,1765723833699,-151.0,0.00016414,2]
[398482055,1765723833709,-150.0,0.0001642,2]
[398482056,1765723833718,-150.0,0.0001642,2]
[398482057,1765723833727,-500.0,0.00016423,2]
[398482058,1765723833736,-500.0,0.00016423,2]
[398482059,1765723833746,-5.7502139,0.00016423,2]
[398482060,1765723836106,-237.53895365,0.00016423,2]
[398482061,1765723836116,-160.34713571,0.00016423,2]
[398482062,1765723836128,-500.0,0.00016423,2]
[398482063,1765723836138,-595.63749137,0.00016423,2]
[398482064,1765723836148,-859.22101735,0.00016424,2]
[398482065,1765723836160,-26165.73723842,0.00016424,2]
[398482066,1765723836174,-28797.27111447,0.00016424,2]
[398482067,1765723836190,-272.56688149,0.00016424,2]
[398482068,1765723838202,-3580.49117799,0.00016418,2]
[398482069,1765723838213,-14226.10882201,0.00016424,2]
[398482070,1765723838228,-3821.61716989,0.00016424,2]
[398482071,1765723838242,-26202.76299523,0.00016424,2]
[398482072,1765723838253,-478.37891291,0.00016424,2]
[398482073,1765723838267,-351.88118535,0.00016424,2]
[398482074,1765723838347,-40300.0,0.00016424,2]
[398482075,1765723838359,-476.81295156,0.00016424,2]
[398482076,1765723838371,-1449.6465707,0.00016424,2]
[398482115,1765723840353,-10540.5244921,0.00016424,2]
[398482116,1765723840366,-4461.91631819,0.00016424,2]
[398482117,1765723840378,-1171.45687979,0.00016424,2]
[398482118,1765723840389,-524.83740033,0.00016424,2]
[398482119,1765723840402,-891.195,0.00016424,2]
[398482120,1765723840413,-596.298,0.00016424,2]
[398482121,1765723840424,-372.34049029,0.00016424,2]
[398482122,1765723840435,-393.66239999,0.00016424,2]
[398482130,1765723840778,-93.07581022,0.00016424,2]
[398482131,1765723840790,-4365.43074627,0.00016424,2]
[398482138,1765723843345,-176.28734328,0.00016413,2]
[398482139,1765723843354,-658.55543169,0.00016424,2]
[398482140,1765723843365,-591.32027986,0.00016424,2]
[398482141,1765723843377,-1292.21190686,0.00016424,2]
[398482142,1765723843387,-1573.13458229,0.00016424,2]
[398482143,1765723843398,-1650.68809694,0.00016424,2]
[398482144,1765723843409,-916.73474021,0.00016424,2]
[398482145,1765723843420,-877.07771091,0.00016424,2]
[398482146,1765723843430,-656.42984484,0.00016424,2]
[398482147,1765723843441,-480.14190281,0.00016424,2]
[398482148,1765723843452,-5016.14287301,0.00016424,2]
[398482149,1765723843467,-402365.12173402,0.00016424,2]
[398482150,1765723843476,-500.0,0.00016438,2]
[398482151,1765723843485,-500.0,0.00016438,2]
[398482152,1765723843495,-274.51475588,0.00016438,2]
[398482153,1765723843504,-302.39006664,0.00016438,2]
[398482154,1765723843514,-4622.64,0.00016438,2]
[398482155,1765723843524,-600.0,0.00016438,2]
[398482156,1765723843534,-279.64,0.00016438,2]
[398482157,1765723843543,-1217.27,0.00016438,2]
[398482158,1765723843552,-2434.54,0.00016438,2]
[398482159,1765723843561,-1217.27,0.00016438,2]
[398482160,1765723843570,-1217.27,0.00016438,2]
[398482161,1765723843579,-150.0,0.00016438,2]
[398482162,1765723843588,-150.0,0.00016438,2]
[398482163,1765723843598,-300.0,0.00016438,2]
[398482164,1765723843607,-151.93,0.00016438,2]
[398482165,1765723843616,-150.0,0.00016438,2]
[398482166,1765723843625,-150.0,0.00016438,2]
[398482168,1765723843634,-150.0,0.00016438,2]
[398482170,1765723843643,-150.0,0.00016438,2]
[398482172,1765723843652,-9379.9929742,0.00016459,2]
[398482174,1765723843661,-151.0,0.00016492,2]
[398482175,1765723843670,-151.0,0.00016494,2]
[398482176,1765723843680,-151.0,0.00016495,2]
[398482177,1765723843689,-1217.27,0.000165,2]
[398482178,1765723843698,-1668.9733167,0.00016512,2]
[398482179,1765723843707,-3661.15110419,0.00016512,2]
[398482180,1765723843716,-500.0,0.00016524,2]
[398482181,1765723843725,-3377.3519775,0.00016524,2]
[398482182,1765723843733,-46769.0560413,0.00016524,2]
[398482183,1765723843742,-150.0,0.00016562,2]
[398482184,1765723843751,-2959.58376995,0.00016597,2]
[398482185,1765723843761,-22406.36566224,0.00016598,2]
[398482186,1765723843771,-153.33,0.0001661,2]
[398482187,1765723843781,-9633.21950507,0.0001661,2]
[398482188,1765723843790,-819.83,0.00016619,2]
[398482189,1765723843799,-2376.31,0.00016635,2]
[398482190,1765723843807,-150.0,0.00016647,2]
[398482191,1765723843817,-1668.9733167,0.00016685,2]
[398482192,1765723843826,-3661.15110419,0.00016685,2]
[398482193,1765723843836,-150.0,0.00016703,2]
[398482194,1765723843845,-152.87,0.00016762,2]
[398482195,1765723843854,-559.91637451,0.00016773,2]
[398482196,1765723843863,-500.48874049,0.00016773,2]
[398482197,1765723843872,-500.0,0.00016773,2]
[398482199,1765723843881,-500.0,0.00016773,2]
[398482200,1765723843890,-500.42448479,0.00016773,2]
[398482202,1765723843899,-622.20369641,0.00016773,2]
[398482204,1765723843908,-500.0,0.00016773,2]
[398482206,1765723843917,-500.0,0.00016773,2]
[398482207,1765723843927,-500.64872299,0.00016773,2]
[398482208,1765723843936,-500.0,0.00016773,2]
[398482209,1765723843946,-500.0,0.00016773,2]
[398482211,1765723843955,-500.0,0.00016773,2]
[398482213,1765723843964,-500.0,0.00016773,2]
[398482214,1765723843973,-500.0,0.00016773,2]
[398482216,1765723843984,-500.0,0.00016773,2]
[398482217,1765723843993,-500.0,0.00016773,2]
[398482218,1765723844002,-177.08742961,0.00016773,2]
[398482219,1765723844011,-500.0,0.00016773,2]
[398482220,1765723844021,-500.0,0.00016773,2]
[398482221,1765723844030,-500.0,0.00016773,2]
[398482222,1765723844039,-500.87932998,0.00016773,2]
[398482224,1765723844048,-500.0,0.00016773,2]
[398482225,1765723844058,-299.7668433,0.00016773,2]
[398482226,1765723844067,-1000.0,0.00016779,2]
[398482227,1765723844077,-36137.57383582,0.000168,2]
[398482228,1765723844086,-168.0,0.00016824,2]
[398482229,1765723844096,-1668.9733167,0.00016859,2]
[398482230,1765723844106,-3661.15110419,0.00016859,2]
[398482231,1765723844115,-819.83,0.00016893,2]
[398482232,1765723844126,-168.0,0.00016917,2]
[398482233,1765723844139,-510.0,0.00016918,2]
[398482234,1765723844153,-999.99,0.00016922,2]
[398482235,1765723844163,-299.99,0.00016922,4]
[398482236,1765723844175,-1174.54,0.00016922,2]
[398482237,1765723844184,-150.99,0.00016922,2]
[398482238,1765723844193,-1514.73,0.00016922,2]
[398482240,1765723844203,-2824.56,0.00016922,2]
[398482241,1765723844213,-547.33,0.00016922,2]
[398482242,1765723844222,-3674.62,0.00016922,2]
[398482243,1765723844232,-3588.78,0.00016922,2]
[398482244,1765723844242,-9999.99,0.00016922,2]
[398482245,1765723844252,-5355.68,0.00016922,2]
[398482246,1765723844261,-150.99,0.00016922,2]
[398482247,1765723844271,-499.99,0.00016922,2]
[398482248,1765723844280,-1680.0,0.00016925,2]
[398482249,1765723844290,-420.0,0.00016926,2]
[398482250,1765723844299,-420.0,0.00016926,2]
[398482251,1765723844308,-1711.0,0.00016956,2]
[398482252,1765723844317,-195.0,0.00016959,2]
[398482253,1765723844327,-217.15233878,0.00016962,2]
[398482254,1765723844337,-595.37131296,0.00016962,2]
[398482255,1765723844346,-297.12189153,0.00016973,2]
[398482256,1765723844356,-500.0,0.00016973,2]
[398482257,1765723844365,-500.0,0.00016973,2]
[398482258,1765723844375,-500.0,0.00016973,2]
[398482259,1765723844385,-481.15230225,0.00016975,2]
[398482260,1765723844394,-500.0,0.00016986,2]
[398482261,1765723844403,-600.0,0.00016986,2]
[398482262,1765723844413,-150.0,0.00016986,2]
[398482263,1765723844422,-150.0,0.00016986,2]
[398482264,1765723844431,-150.0,0.00016986,2]
[398482265,1765723844440,-150.0,0.00016986,2]
[398482266,1765723844450,-150.0,0.00016986,2]
[398482267,1765723844460,-150.0,0.00016986,2]
[398482268,1765723844470,-606.51704016,0.0001699,2]
[398482269,1765723844480,-300.0,0.00016997,2]
[398482270,1765723844489,-195.0,0.00016997,2]
[398482271,1765723844498,-300.0,0.00016997,2]
[398482272,1765723844507,-250.0,0.00016997,2]
[398482273,1765723844518,-2000.0,0.00017,2]
[398482274,1765723844529,-2000.0,0.00017,2]
[398482275,1765723844539,-2000.0,0.00017,2]
[398482276,1765723844550,-2000.0,0.00017,2]
[398482277,1765723844559,-48495.02032895,0.00017,2]
[398482291,1765723848150,-2255.13269521,0.00017,2]
[398482292,1765723848161,-5893.178389,0.00017,2]
[398482293,1765723848173,-986.89522002,0.00017,2]
[398482322,1765723930780,243.6281,0.00015352,2]
[398482389,1765724286572,1098.0,0.00015409,2]
[398482390,1765724290042,1098.0,0.00015409,2]
[398482392,1765724294864,1098.0,0.00015409,2]
[398482393,1765724299836,1098.0,0.00015409,2]
[398482394,1765724300721,369.0,0.000225,120]
[398482395,1765724305102,1098.0,0.00015409,2]
[398482396,1765724311939,1028.9672742,0.00015409,2]
[398482433,1765724527285,-557.88373639,0.00015746,2]
[398482434,1765724528828,-367.7840324,0.00015746,2]
[398482442,1765724573579,-329.33385753,0.00015746,2]
[398482444,1765724592175,1732.9,0.00015655,2]
[398482450,1765724632165,-167.41834824,0.00015746,2]
[398482455,1765724635669,-244.32582589,0.00015746,2]
[398482458,1765724682291,411.744174,0.00015667,2]
[398482467,1765724718376,150.0,0.00015288,2]
[398482468,1765724726088,150.0,0.00015288,2]
[398482469,1765724726481,150.0,0.00015288,2]
[398482470,1765724726565,275.41379652,0.00015288,2]
[398482471,1765724726642,150.0,0.00015288,2]
[398482472,1765724730423,153.27433076,0.00015288,2]
[398482473,1765724741896,150.0,0.00015288,2]
[398482483,1765724873748,-200.0,0.00015746,2]
[398482484,1765724874876,-207.4,0.00015746,2]
[398482485,1765724880207,-215.0738,0.00015746,2]
[398482486,1765724881863,-211.29164247,0.00015746,2]
[398482491,1765724885880,-195.0,0.00015746,2]
[398482492,1765724891481,1000.0,0.00013699,2]
[398482493,1765724893116,-300.0,0.00015746,2]
[398482494,1765724898537,-193.79432162,0.00015746,2]
[398482495,1765724901419,-161.71796653,0.00015746,2]
[398482496,1765724905074,-164.81785714,0.00015746,2]
[398482500,1765724907483,-241.62848032,0.00015746,2]
[398482503,1765724973639,1004.36,0.00015385,2]
[398482504,1765724999131,150.0,0.00015587,2]
[398482517,1765725036941,-281.0,0.00015746,2]
[398482518,1765725036951,-968.01013147,0.00015746,2]
[398482519,1765725036961,-546.21820942,0.00015768,2]
[398482520,1765725036972,-653.78179058,0.00015768,2]
[398482521,1765725036981,-51.39396853,0.00015768,2]
[398482554,1765725037351,-248.60603147,0.00015768,2]
[398482556,1765725037360,-251.38264924,0.00015768,2]
[398482561,1765725037403,-48.61735076,0.00015768,2]
[398482563,1765725037415,-200.0,0.00015769,2]
[398482565,1765725037425,-207.4,0.00015769,2]
[398482567,1765725037435,-215.0738,0.00015769,2]
[398482569,1765725037445,-223.0315306,0.00015769,2]
[398482571,1765725037455,-226.31021991,0.00015769,2]
[398482574,1765725037470,-4.97347732,0.00015769,2]
[398482576,1765725037480,-239.84119403,0.00015769,2]
[398482577,1765725037489,-205.92954223,0.00015769,2]
[398482578,1765725037498,-150.0,0.00015854,2]
[398482579,1765725037508,-1098.0,0.00015869,2]
[398482580,1765725037517,-200.0,0.00015909,2]
[398482581,1765725037526,-2633.58554424,0.00015944,2]
[398482582,1765725037536,-250.0,0.00015961,2]
[398482583,1765725037545,-1700.679,0.00016214,2]
[398482584,1765725037554,-4454.0,0.0001625,2]
[398482585,1765725037563,-1362.67430617,0.00016287,2]
[398482586,1765725037574,-834.01635638,0.00016287,2]
[398482587,1765725037583,-752.5783531,0.000163,2]
[398482588,1765725037594,-362.46383099,0.000163,2]
[398482589,1765725037603,-300.0,0.000163,2]
[398482590,1765725037612,-550.0,0.00016303,2]
[398482591,1765725037621,-514.18,0.00016304,3]
[398482592,1765725037630,-273.28,0.00016304,2]
[398482593,1765725037639,-500.0,0.00016304,2]
[398482594,1765725037648,-1000.0,0.00016304,2]
[398482595,1765725037657,-641.85246101,0.00016304,2]
[398482596,1765725037669,-358.14753899,0.00016304,2]
[398482597,1765725037678,-261.16145731,0.00016304,2]
[398482598,1765725037693,-738.83854269,0.00016304,2]
[398482599,1765725037702,-1000.0,0.00016304,2]
[398482600,1765725037711,-1000.0,0.00016304,2]
[398482601,1765725037720,-1000.0,0.00016304,2]
[398482603,1765725037730,-1000.0,0.00016304,2]
[398482604,1765725037739,-1000.0,0.00016304,2]
[398482605,1765725037748,-1000.0,0.00016304,2]
[398482607,1765725037758,-585.35084681,0.00016304,2]
[398482609,1765725037771,-153.2106105,0.00016304,2]
[398482611,1765725037783,-6.7893895,0.00016304,2]
[398482615,1765725037792,-151.0,0.00016304,2]
[398482617,1765725037802,-500.0,0.00016304,2]
[398482618,1765725037812,-305.78070651,0.00016304,2]
[398482620,1765725037822,-151.0,0.00016304,2]
[398482622,1765725037831,-574.12855637,0.00016304,2]
[398482625,1765725037843,-151.0,0.00016304,2]
[398482627,1765725037853,-151.0,0.00016304,2]
[398482628,1765725037863,-200.0,0.00016304,2]
[398482631,1765725037873,-64.14068777,0.00016304,2]
[398482633,1765725037885,-86.85931223,0.00016304,2]
[398482635,1765725037894,-151.0,0.00016304,2]
[398482637,1765725037904,-151.0,0.00016304,2]
[398482639,1765725037913,-151.0,0.00016304,2]
[398482641,1765725037923,-154.86697558,0.00016304,2]
[398482643,1765725037933,-88.97598689,0.00016304,2]
[398482645,1765725037946,-62.02401311,0.00016304,2]
[398482647,1765725037955,-385.34662091,0.00016309,2]
[398482649,1765725037964,-9999.99,0.0001631,2]
[398482651,1765725037974,-150.99,0.0001631,2]
[398482653,1765725037983,-544.04476055,0.0001631,2]
[398482655,1765725037994,-9455.94523945,0.0001631,2]
[398482657,1765725038003,-308.78,0.0001631,2]
[398482660,1765725038013,-1565.278,0.00016313,2]
[398482662,1765725038022,-1077.07616094,0.00016387,2]
[398482665,1765725038046,-987.18610805,0.00016387,2]
[398482681,1765725039508,-150.0,0.0001625,2]
[398482682,1765725039518,-150.0,0.0001625,2]
[398482683,1765725039528,-150.0,0.0001625,2]
[398482684,1765725039539,-150.0,0.0001625,2]
[398482685,1765725039549,-150.0,0.0001625,2]
[398482686,1765725039559,-2389.73773101,0.00016387,2]
[398482687,1765725039569,-150.0,0.00016387,2]
[398482688,1765725039578,-150.0,0.00016387,2]
[398482689,1765725039587,-150.0,0.00016387,2]
[398482690,1765725039597,-524.57,0.000164,2]
[398482691,1765725039606,-703.86,0.000164,2]
[398482692,1765725039616,-150.0,0.0001642,2]
[398482693,1765725039625,-8331.57,0.00016438,2]
[398482694,1765725039634,-600.0,0.00016438,2]
[398482695,1765725039643,-2196.69066251,0.00016466,2]
[398482696,1765725039653,-1115.04218405,0.00016478,2]
[398482697,1765725039662,-150.0,0.000165,2]
[398482698,1765725039671,-703.99,0.000165,2]
[398482699,1765725039681,-703.99,0.000165,2]
[398482700,1765725039690,-1407.85,0.000165,2]
[398482701,1765725039700,-4454.0,0.00016524,2]
[398482702,1765725039710,-200.0,0.00016524,2]
[398482703,1765725039719,-200.0,0.00016524,2]
[398482704,1765725039728,-151.0,0.00016574,2]
[398482705,1765725039737,-273.28,0.00016578,2]
[398482707,1765725039746,-4935.0,0.000166,3]
[398482708,1765725039755,-2196.69066251,0.00016645,2]
[398482709,1765725039769,-1115.04218405,0.00016656,2]
[398482710,1765725039778,-500.0,0.00016659,2]
[398482711,1765725039792,-161.15587224,0.00016659,2]
[398482712,1765725039801,-468.50167905,0.00016659,2]
[398482713,1765725039811,-28906.0,0.0001666,2]
[398482714,1765725039820,-4454.0,0.00016661,2]
[398482715,1765725039831,-166.66,0.00016663,2]
[398482716,1765725039842,-1098.0,0.00016705,2]
[398482717,1765725039851,-161.78,0.00016712,2]
[398482718,1765725039860,-1254.99345249,0.00016727,2]
[398482719,1765725039869,-500.0,0.00016773,2]